bitfinex/quotes_SOLUSD_20250922
["timestamp","ask_amount","ask_price","bid_price","bid_amount"]
[1758521026692,23.58886097,220.67,219.96,22.82900128]
[1758521026897,23.58886097,220.74,220.06,22.02762202]
[1758521027102,23.58886097,220.74,220.2,22.777197]
[1758521027300,23.58886097,220.84,220.33,22.49114339]
[1758521027484,23.58886097,220.84,220.3,22.14786748]
[1758521027687,23.58886097,220.84,220.26,22.93441778]
[1758521027888,23.78886097,220.92,220.35,13.03]
[1758521028084,23.78886097,220.92,220.15,22.93427843]
[1758521028300,23.78886097,220.92,220.21,22.60009152]
[1758521028683,23.78886097,220.92,220.22,22.4223927]
[1758521028908,0.2,220.92,220.29,13.03]
[1758521029112,0.2,220.92,220.17,22.36077367]
[1758521029312,22.25066995,220.91,220.36,22.27290661]
[1758521029497,0.68,220.9,220.53,26.07]
[1758521029820,31.2,220.84,220.54,14.5652927]
[1758521030008,0.68,220.83,220.15,13.03]
[1758521030205,45.85213496,220.86,220.29,13.03]
[1758521030505,22.82737731,220.88,220.42,13.03]
[1758521030709,2.37191429,220.89,220.38,26.07]
[1758521031126,2.37191429,220.89,220.5,26.07]
[1758521031287,2.37191429,220.89,220.54,26.07]
[1758521031492,0.2,220.92,220.54,26.07]
[1758521031911,0.2,220.92,220.77,31.2]
[1758521032213,0.2,220.92,220.75,13.03]
[1758521032412,0.2,220.92,220.62,22.77895154]
[1758521032413,0.2,220.92,220.66,39.1]
[1758521032716,0.2,220.92,220.75,22.05517415]
[1758521032914,0.2,220.92,220.82,26.07]
[1758521033208,0.2,220.92,220.56,22.54734695]
[1758521033404,0.2,220.92,220.61,49.00152271]
[1758521033603,0.2,220.92,220.72,22.36397628]
[1758521033806,0.2,220.92,220.83,26.07]
[1758521034201,0.2,220.92,220.74,22.51730413]
[1758521034402,0.2,220.92,220.83,26.07]
[1758521034605,0.2,220.92,220.87,26.07]
[1758521035323,0.2,220.92,220.66,13.40637405]
[1758521035498,0.2,220.92,220.58,22.08629203]
[1758521035705,0.2,220.92,220.59,36.82]
[1758521036025,0.2,220.92,220.6,22.54974579]
[1758521036194,0.2,220.92,220.61,13.61]
[1758521036397,0.2,220.92,220.79,22.1222855]
[1758521036598,0.2,220.92,220.86,31.2]
[1758521036799,0.2,220.92,220.87,13.61]
[1758521037014,0.2,220.92,220.74,22.51730413]
[1758521037200,0.2,220.92,220.85,31.2]
[1758521037401,0.2,220.92,220.61,5.23965348]
[1758521037402,0.2,220.92,220.66,22.42652258]
[1758521037602,0.2,220.92,220.62,22.20570341]
[1758521037801,0.2,220.92,220.61,13.77091051]
[1758521038128,0.2,220.92,220.21,9.11591504]
[1758521038320,0.2,220.92,220.23,49.60890387]
[1758521038617,0.2,220.92,220.35,39.68]
[1758521038822,0.2,220.92,220.46,22.93592777]
[1758521039115,0.2,220.92,220.64,22.05010096]
[1758521039318,0.2,220.92,220.64,61.73010096]
[1758521039498,0.2,220.92,220.64,39.68]
[1758521039705,0.2,220.92,220.79,22.13104271]
[1758521039907,0.2,220.92,220.57,22.54637243]
[1758521040405,0.2,220.92,220.58,13.61]
[1758521040615,0.69,221.08,220.61,22.48905407]
[1758521040914,0.69,221.07,220.68,22.70622209]
[1758521041113,0.69,221.06,220.71,13.61]
[1758521041431,0.69,221.05,220.74,22.21942938]
[1758521041617,0.69,221.04,220.75,22.89801425]
[1758521041821,0.69,221.04,220.68,13.61]
[1758521042131,0.69,221.12,220.7,22.65539245]
[1758521042312,0.69,221.12,220.78,22.19549977]
[1758521042517,0.2,221.15,220.67,22.09078381]
[1758521042720,0.2,221.15,220.79,22.91654564]
[1758521042903,0.2,221.15,220.85,13.61]
[1758521043318,0.69,221.14,220.77,22.66420916]
[1758521043503,0.69,221.13,220.77,22.66420916]
[1758521043707,31.2,221.06,220.5,22.20957822]
[1758521043911,0.69,221.05,220.54,22.62189741]
[1758521044134,0.69,221.04,220.55,13.61]
[1758521044338,31.2,220.85,220.18,22.20991224]
[1758521044541,31.2,220.76,220.19,11.35383078]
[1758521044716,31.2,220.76,220.19,21.04546101]
[1758521045035,0.69,221.14,220.34,31.2]
[1758521045336,0.2,221.15,220.65,22.86469892]
[1758521045533,20.2,221.15,220.7,0.01688717]
[1758521045707,20.69,221.14,220.66,59.01232753]
[1758521045907,0.69,221.14,220.7,48.72539245]
[1758521046111,0.69,221.14,220.67,22.09078381]
[1758521046112,0.69,221.13,220.67,22.09078381]
[1758521046319,0.69,221.13,220.66,36.76]
[1758521046320,15.5,220.97,220.44,22.49001353]
[1758521046625,31.2,220.9,220.43,22.88215747]
[1758521046836,31.2,220.9,220.38,36.76]
[1758521046837,31.2,220.76,220.38,36.76]
[1758521047035,31.2,220.68,220.19,13.61]
[1758521047207,0.69,220.67,220.24,26.07]
[1758521047407,15.5,220.54,220.24,26.07]
[1758521047609,0.69,220.53,220.24,26.07]
[1758521047812,12.50019341,220.42,220.09,36.76]
[1758521048010,0.69,220.41,220.1,26.07]
[1758521048233,0.69,220.51,220.12,26.07]
[1758521048416,2.99445422,220.87,220.17,22.36655138]
[1758521048623,2.99445422,220.78,220.29,22.73533162]
[1758521048819,2.99445422,220.88,220.34,26.07]
[1758521049146,2.99445422,220.75,220.35,26.73]
[1758521049315,2.99445422,220.78,220.37,26.07]
[1758521049516,2.99445422,220.7,220.36,0.66]
[1758521049718,2.99445422,220.71,220.36,0.66]
[1758521050046,2.99445422,220.61,220.18,0.66]
[1758521050338,0.69,220.6,220.11,13.61]
[1758521050535,0.69,220.59,220.12,13.13688717]
[1758521050713,2.99445422,220.52,220.12,13.13688717]
[1758521050917,2.99445422,220.52,218.89,17.00554578]
[1758521050918,2.99445422,220.33,219.82,36.78]
[1758521051130,2.99445422,220.56,219.84,22.04005988]
[1758521051326,2.99445422,220.37,219.88,22.76450959]
[1758521051528,2.99445422,220.24,219.96,22.11837803]
[1758521051835,2.99445422,220.28,219.97,0.66]
[1758521052028,31.2,220.64,219.9,22.3231612]
[1758521052232,31.2,220.64,219.89,0.67]
[1758521052419,31.2,220.64,219.82,36.78]
[1758521052420,31.2,220.64,219.82,0.67]
[1758521052623,8.48484288,220.54,219.59,0.1]
[1758521052830,31.2,220.57,219.59,0.1]
[1758521053143,31.2,220.38,219.59,0.1]
[1758521053432,31.2,220.28,219.59,0.1]
[1758521053636,31.2,220.24,219.59,0.1]
[1758521053846,31.2,220.2,219.6,22.16297335]
[1758521054023,0.69,220.19,219.6,22.16297335]
[1758521054216,0.69,220.18,219.62,22.0835547]
[1758521054417,0.85331181,220.17,219.63,0.67]
[1758521054638,37.65331181,220.17,219.59,0.1]
[1758521054842,31.2,220.14,219.6,22.83297335]
[1758521055149,0.69,220.13,219.61,0.67]
[1758521055330,0.69,220.13,219.59,0.1]
[1758521055715,0.69,220.13,219.6,0.67]
[1758521056126,0.69,220.13,219.61,22.6949458]
[1758521056459,0.69,220.12,219.64,22.57284124]
[1758521056738,36.82,220.45,219.66,22.03458994]
[1758521056931,36.82,220.45,219.59,0.1]
[1758521056932,36.82,220.45,219.72,22.6919796]
[1758521057136,2.99852267,220.43,219.73,0.67]
[1758521057835,2.99852267,220.43,219.74,22.58452308]
[1758521058042,0.60802252,220.42,219.76,22.74977374]
[1758521058234,0.60802252,220.42,219.77,0.67]
[1758521058415,2.99852267,220.43,219.78,22.55820759]
[1758521058620,2.99852267,220.43,219.62,36.84]
[1758521058621,0.69,220.42,219.79,0.67]
[1758521058835,31.89,220.42,219.79,3.44353145]
[1758521059143,0.69,220.41,219.79,2.77353145]
[1758521059343,0.69,220.4,219.79,2.77353145]
[1758521059553,0.69,220.39,219.79,2.77353145]
[1758521059754,0.69,220.38,219.79,2.77353145]
[1758521059960,0.69,220.37,219.8,22.35609927]
[1758521060256,0.69,220.36,219.82,22.06526196]
[1758521060552,0.69,220.35,219.84,22.37925429]
[1758521060731,2.37870108,220.38,219.85,0.67]
[1758521060937,0.69,220.37,219.9,22.34174044]
[1758521061138,2.99852267,220.36,219.92,22.47434317]
[1758521061345,2.99852267,220.36,219.93,0.67]
[1758521061547,0.69,220.35,219.93,0.67]
[1758521061761,0.69,220.35,219.94,22.50323757]
[1758521061939,0.69,220.34,219.93,0.67]
[1758521062131,0.69,220.34,219.94,0.67]
[1758521062534,0.69,220.34,219.68,36.86]
[1758521062836,2.37870108,220.38,219.69,22.37962204]
[1758521062837,0.69,220.33,219.69,22.37962204]
[1758521063758,2.99852267,220.32,219.7,22.61613633]
[1758521063955,0.69,220.31,219.7,22.61613633]
[1758521064139,0.69,220.3,219.7,22.61613633]
[1758521064565,0.69,220.29,219.45,22.68864469]
[1758521064735,0.69,220.28,219.39,22.95055623]
[1758521064929,0.69,220.27,219.39,22.95055623]
[1758521065134,0.69,220.26,219.41,36.54194214]
[1758521065356,31.2,220.33,219.4,0.07]
[1758521065357,0.69,220.25,219.43,22.61548828]
[1758521065560,0.69,220.24,219.47,22.81950308]
[1758521065855,0.69,220.23,219.45,36.35918467]
[1758521066167,2.99852267,220.22,219.47,27.49410307]
[1758521066364,0.69,220.36,219.49,35.75138341]
[1758521066566,36.88,220.63,219.57,35.93851777]
[1758521066740,36.88,220.63,219.44,1.91013303]
[1758521066741,8.68484288,220.62,219.59,22.07114259]
[1758521066937,2.37818365,220.35,219.6,0.71]
[1758521067260,0.2,220.62,219.61,22.67631839]
[1758521067261,22.14415729,220.59,219.61,22.67631839]
[1758521067470,0.2,220.62,219.61,22.67631839]
[1758521067471,22.35538481,220.61,219.61,22.67631839]
[1758521067629,2.37973893,220.34,219.61,22.67631839]
[1758521067833,2.37973893,220.34,219.6,0.71]
[1758521068063,0.2,220.62,219.61,22.67631839]
[1758521068360,0.2,220.62,219.63,22.18517678]
[1758521068361,2.37840748,220.33,219.63,22.18517678]
[1758521068542,0.69,220.36,219.71,31.2]
[1758521068744,1.91013303,220.37,219.73,22.12835014]
[1758521068944,1.91013303,220.37,219.75,22.80682084]
[1758521069264,2.37728644,220.61,219.76,0.71]
[1758521069436,2.37728644,220.6,219.76,0.71]
[1758521069636,2.37728644,220.6,219.61,0.71]
[1758521069955,31.2,220.42,219.62,22.50461477]
[1758521070366,31.2,220.5,219.62,22.50461477]
[1758521070747,0.69,220.49,219.61,0.71]
[1758521070943,39.68484288,220.33,219.62,22.50461477]
[1758521071139,0.69,220.32,219.62,22.50461477]
[1758521071349,0.69,220.31,219.62,22.50461477]
[1758521071548,36.9,220.3,219.62,22.50461477]
[1758521071861,31.2,220.27,219.43,0.71]
[1758521072061,31.2,220.23,219.43,0.71]
[1758521072246,31.2,220.23,219.44,22.81704928]
[1758521072446,0.69,220.26,219.46,22.87101829]
[1758521072666,0.69,220.26,219.57,22.05264305]
[1758521072967,0.69,220.42,219.61,50.01153809]
[1758521073174,0.69,220.42,219.68,53.75173487]
[1758521073340,0.69,220.42,219.69,0.71]
[1758521073941,0.69,220.42,219.7,22.92845791]
[1758521074158,31.2,220.56,219.7,22.92845791]
[1758521074159,35.811,220.38,219.7,22.92845791]
[1758521074350,0.69,220.37,219.69,0.71]
[1758521074552,35.811,220.34,219.44,22.81704928]
[1758521074859,32.05246695,220.66,219.44,22.81704928]
[1758521074860,4.611,220.3,219.44,22.81704928]
[1758521075060,0.69,220.29,219.44,36.48821223]
[1758521075261,0.69,220.28,219.43,23.98168945]
[1758521075468,0.69,220.27,219.43,23.98168945]
[1758521075660,31.2,220.23,219.43,23.98168945]
[1758521075854,0.69,220.22,219.31,2.38229283]
[1758521076057,0.69,220.21,219.21,0.45618356]
[1758521076369,31.2,220.13,219.28,2.38239152]
[1758521076670,31.2,220.13,219.39,0.71]
[1758521076873,0.69,220.12,219.39,0.71]
[1758521077172,35.811,220.04,219.39,0.71]
[1758521077359,35.811,219.9,219.25,0.71]
[1758521077561,31.2,219.84,219.26,22.00056702]
[1758521077745,31.2,219.82,219.25,0.71]
[1758521077945,0.69,219.83,218.93,22.58923503]
[1758521077946,31.2,219.67,218.93,22.58923503]
[1758521078141,0.69,219.66,218.93,22.58923503]
[1758521078367,0.69,219.65,218.93,22.58923503]
[1758521078574,0.69,219.64,218.93,22.58923503]
[1758521078751,0.69,219.63,218.93,22.58923503]
[1758521078953,0.69,219.62,218.93,22.58923503]
[1758521079149,31.2,219.55,218.93,22.58923503]
[1758521079467,31.2,219.53,218.93,22.58923503]
[1758521080070,0.69,219.52,218.93,22.58923503]
[1758521080565,0.69,219.51,218.93,22.58923503]
[1758521080767,0.69,219.51,218.95,22.84092429]
[1758521081954,0.69,219.5,218.95,22.84092429]
[1758521082155,0.69,219.49,218.93,22.40815733]
[1758521082853,29.1503081,219.85,218.92,34.86499731]
[1758521082854,0.69,219.61,218.95,22.84092429]
[1758521083071,0.69,219.75,218.97,22.1184007]
[1758521083372,36.92,219.94,219.06,36.14745143]
[1758521083563,36.92,219.94,218.94,4.5674614]
[1758521083564,0.69,219.9,219.18,22.95350266]
[1758521083772,0.69,219.9,219.28,22.07914687]
[1758521083966,0.69,220.04,219.3,35.74564812]
[1758521084280,0.69,220.04,219.29,0.48601714]
[1758521084281,0.69,220.03,219.31,0.03]
[1758521084581,0.69,220.03,219.08,22.58194655]
[1758521084755,0.69,220.02,219.14,22.60316211]
[1758521084955,31.2,219.81,219.14,22.60316211]
[1758521085154,0.69,219.8,219.16,22.24780032]
[1758521085467,36.98,220.06,219.17,0.03]
[1758521085468,0.69,219.79,219.17,0.03]
[1758521085695,0.69,219.79,219.18,22.95350266]
[1758521085875,0.69,219.78,219.2,22.40177201]
[1758521086060,0.69,219.78,219.21,22.20495132]
[1758521086261,0.69,219.77,219.22,0.03]
[1758521086654,0.69,219.77,218.97,22.60436148]
[1758521086884,36.98,220.06,219.11,22.94457875]
[1758521086885,0.69,219.76,219.11,22.94457875]
[1758521087190,0.69,219.75,218.99,13.61]
[1758521087362,0.69,219.74,219.07,13.61]
[1758521087556,0.69,219.73,219.08,36.02786289]
[1758521087755,0.69,219.85,219.2,22.13215167]
[1758521087977,0.69,219.94,219.29,27.3]
[1758521088291,0.69,219.93,219.17,13.61]
[1758521088460,0.69,219.92,219.18,22.62515892]
[1758521088657,31.2,219.87,219.18,36.23515892]
[1758521088885,0.69,219.86,219.22,22.20903766]
[1758521089085,37.67,220.06,219.35,22.26793115]
[1758521089285,37.67,220.06,219.38,22.98027846]
[1758521089593,31.2,220.03,219.27,36.98]
[1758521089751,0.69,220.02,219.09,22.70333764]
[1758521089956,0.69,220.01,219.21,36.98]
[1758521090151,31.2,220.03,219.21,36.98]
[1758521090152,0.69,220.0,219.21,36.98]
[1758521090376,0.69,219.99,219.22,22.20903766]
[1758521090691,31.2,219.9,219.22,22.20903766]
[1758521090877,0.69,219.89,219.22,22.20903766]
[1758521091064,0.69,219.88,219.22,22.20903766]
[1758521091464,0.69,219.87,219.22,22.20903766]
[1758521091663,0.69,219.86,219.21,36.98]
[1758521091863,0.69,219.85,219.22,22.20903766]
[1758521092085,0.69,219.84,219.22,22.20903766]
[1758521092587,39.20764279,219.93,219.22,22.20903766]
[1758521092879,31.2,219.7,218.93,26.67444123]
[1758521093088,31.2,219.7,219.04,22.51138822]
[1758521093379,31.2,219.7,219.01,23.0394346]
[1758521093580,31.2,219.7,219.03,22.5040845]
[1758521093771,31.2,219.7,219.05,22.70658769]
[1758521093969,31.2,219.7,219.02,22.23603727]
[1758521094167,31.2,219.7,219.01,0.45660015]
[1758521094168,0.69,219.69,219.01,22.58283445]
[1758521094367,0.69,219.68,219.01,22.58283445]
[1758521094575,0.69,219.67,219.01,22.58283445]
[1758521094881,31.2,219.57,219.01,22.58283445]
[1758521095064,0.69,219.56,219.01,22.58283445]
[1758521095255,36.97,219.73,219.01,22.58283445]
[1758521095459,31.2,219.68,219.03,22.5040845]
[1758521095698,31.2,219.67,219.05,22.70658769]
[1758521095880,31.2,219.67,219.07,22.68213066]
[1758521096089,36.97,219.73,219.09,22.37770502]
[1758521096256,8.01883202,219.72,219.11,22.71561436]
[1758521096458,31.2,219.61,219.13,22.33538809]
[1758521096662,36.97,219.73,219.41,8.01883202]
[1758521096876,31.2,219.58,219.22,0.69]
[1758521097082,31.2,219.7,218.94,22.79132844]
[1758521097291,31.2,219.53,219.04,8.01883202]
[1758521097598,0.7,219.52,219.5,8.01883202]
[1758521097768,31.2,219.58,219.05,22.59169907]
[1758521097969,36.97,219.73,218.93,22.70202448]
[1758521098269,31.2,219.52,219.05,22.59169907]
[1758521098473,0.7,219.51,219.05,22.59169907]
[1758521098683,0.7,219.5,219.05,22.59169907]
[1758521098871,0.7,219.49,219.18,22.46331685]
[1758521099182,0.7,219.49,219.04,8.01883202]
[1758521099183,0.7,219.48,219.39,8.01883202]
[1758521099477,0.7,219.48,219.05,22.73035036]
[1758521099684,31.2,219.45,219.35,8.01883202]
[1758521099873,31.2,219.41,219.35,8.01883202]
[1758521100072,31.2,219.41,219.05,22.73035036]
[1758521100276,31.2,219.41,219.4,8.01883202]
[1758521100475,37.0,219.44,219.4,8.01883202]
[1758521100719,37.0,219.44,219.43,8.01883202]
[1758521100990,1.2127964,219.43,219.05,22.73035036]
[1758521101562,1.2127964,219.43,219.41,8.01883202]
[1758521101768,0.4927964,219.43,219.42,8.01883202]
[1758521101994,0.88292457,219.49,219.42,8.01883202]
[1758521102294,37.02,219.92,219.48,8.01883202]
[1758521102587,37.02,219.99,219.91,8.01883202]
[1758521102888,37.02,220.21,219.78,8.01883202]
[1758521103091,34.33400028,220.37,220.16,8.01883202]
[1758521103391,71.35400028,220.37,220.24,8.01883202]
[1758521103598,71.35400028,220.37,219.79,22.43595552]
[1758521103790,34.33400028,220.37,220.15,8.01883202]
[1758521104174,0.7,220.57,220.36,8.01883202]
[1758521104376,0.7,220.57,220.15,8.01883202]
[1758521104595,0.7,220.57,220.18,22.79896054]
[1758521104804,34.31774284,220.7,220.16,22.74600783]
[1758521104982,34.31774284,220.7,220.15,8.01883202]
[1758521105496,34.31774284,220.7,220.55,8.01883202]
[1758521105689,34.31774284,220.7,220.61,8.01883202]
[1758521105887,34.31774284,220.7,220.52,8.01883202]
[1758521105888,0.7,220.89,220.52,8.01883202]
[1758521106188,36.98,221.01,220.29,36.98]
[1758521106390,36.98,221.01,220.52,8.01883202]
[1758521106589,36.98,221.01,220.97,8.01883202]
[1758521106800,37.68,221.01,220.52,8.01883202]
[1758521106969,0.7,221.26,221.0,8.01883202]
[1758521107173,0.7,221.26,221.14,8.01883202]
[1758521107374,0.7,221.26,220.89,30.73221988]
[1758521107375,0.7,221.26,220.89,8.01883202]
[1758521107575,36.96,221.38,220.52,8.01883202]
[1758521107884,0.7,221.14,220.52,8.01883202]
[1758521108072,0.2,220.8,220.52,8.01883202]
[1758521108272,0.2,220.8,220.79,8.01883202]
[1758521108688,0.2,220.8,220.34,27.30199564]
[1758521108973,0.7,221.0,220.52,8.01883202]
[1758521109272,8.01883202,221.26,220.52,8.01883202]
[1758521109273,0.7,221.16,220.99,8.01883202]
[1758521109480,2.42112089,220.99,220.53,22.39424851]
[1758521109679,2.42112089,220.99,220.53,0.45345304]
[1758521109888,2.42112089,220.99,220.54,0.45343248]
[1758521110077,2.42112089,220.99,220.48,0.45355587]
[1758521110475,2.42112089,220.99,220.46,22.84683373]
[1758521110677,2.42112089,220.99,220.38,31.65376168]
[1758521110974,2.42112089,220.99,220.52,22.89070254]
[1758521111175,2.42112089,220.99,220.41,22.40764114]
[1758521111381,2.42112089,220.99,220.37,13.81150165]
[1758521111685,2.42112089,220.99,220.38,0.45376168]
[1758521111883,2.42112089,220.99,220.53,22.92025308]
[1758521112088,2.42112089,220.99,220.6,13.61]
[1758521112288,2.42112089,220.99,220.61,0.4532886]
[1758521112505,2.42112089,220.99,220.32,22.04048888]
[1758521112677,2.42112089,220.99,220.35,0.45382346]
[1758521112876,2.42112089,220.99,220.42,27.3]
[1758521113079,2.42112089,220.99,220.5,27.3]
[1758521113307,2.42112089,220.99,220.51,0.45349417]
[1758521113696,2.42112089,220.99,220.53,22.92025308]
[1758521113998,2.42112089,220.99,220.67,22.6125603]
[1758521114198,2.42112089,220.99,220.69,22.49148533]
[1758521114604,2.42112089,220.99,220.71,22.74803478]
[1758521114805,2.42112089,220.99,220.72,22.74308549]
[1758521114989,2.42112089,220.99,220.72,0.4530627]
[1758521115195,0.2,221.15,220.72,31.6530627]
[1758521115380,0.2,221.15,220.81,22.3040155]
[1758521115700,0.2,221.15,220.8,31.2]
[1758521115896,0.2,221.15,220.82,13.61]
[1758521116093,0.2,221.15,220.84,13.61]
[1758521116298,0.2,221.15,220.86,13.61]
[1758521116489,0.2,221.15,220.66,36.86]
[1758521116690,0.69,221.14,220.66,23.21060739]
[1758521116906,0.69,221.14,220.67,36.2225603]
[1758521117203,0.69,221.13,220.41,22.40764114]
[1758521117413,0.69,221.12,220.4,36.84]
[1758521117886,39.10997278,220.94,219.89,22.57986964]
[1758521118090,31.2,220.89,220.27,22.81973113]
[1758521118392,0.69,220.88,220.35,22.98391647]
[1758521118584,0.69,220.88,220.4,13.61]
[1758521119207,0.69,220.88,220.41,22.40764114]
[1758521119407,0.69,220.99,220.33,50.13483058]
[1758521119593,0.69,220.98,220.37,22.65197998]
[1758521119902,31.2,220.81,220.2,22.81542171]
[1758521120116,31.2,220.79,220.19,13.51348609]
[1758521120293,31.2,220.79,219.95,22.7317954]
[1758521120294,31.2,220.7,219.72,22.32658311]
[1758521120599,59.41046727,220.92,219.86,22.83183595]
[1758521120600,31.2,220.66,219.86,22.83183595]
[1758521120803,31.2,220.66,219.95,13.61]
[1758521121002,31.2,220.66,219.98,27.3]
[1758521121189,0.69,220.65,219.72,4.55124704]
[1758521121396,31.2,220.47,219.74,22.70882226]
[1758521121604,31.2,220.47,219.78,22.8719739]
[1758521121809,0.69,220.52,219.85,13.61]
[1758521122105,0.69,220.51,219.91,40.91]
[1758521122404,7.90997278,220.48,219.94,22.34374307]
[1758521122710,31.2,220.47,220.02,22.04983391]
[1758521122919,31.2,220.4,219.73,36.82]
[1758521123220,31.2,220.34,219.77,22.91776472]
[1758521123513,0.69,220.33,219.77,50.21776472]
[1758521123808,0.69,220.42,219.77,50.21776472]
[1758521124002,7.90997278,220.35,219.83,22.31334465]
[1758521124310,0.69,220.34,219.56,36.24777467]
[1758521124512,0.69,220.33,219.56,36.24777467]
[1758521124694,0.69,220.33,219.58,35.75875568]
[1758521124888,0.69,220.43,219.81,31.2]
[1758521125224,0.69,220.72,220.11,31.2]
[1758521125408,0.69,220.71,220.19,22.81721139]
[1758521125592,44.72997278,220.89,220.04,22.78518688]
[1758521125593,0.69,220.7,220.04,22.78518688]
[1758521125912,0.69,220.69,219.33,36.34104709]
[1758521126111,0.69,220.68,219.46,36.37203185]
[1758521126419,31.63989112,221.26,219.44,13.61]
[1758521126420,2.35665881,220.69,219.71,31.2]
[1758521126593,2.35665881,220.69,220.01,31.2]
[1758521126914,2.35665881,220.69,219.97,31.2]
[1758521126915,2.35665881,220.69,220.28,81.37642615]
[1758521127103,2.35665881,220.69,220.39,22.16339485]
[1758521127306,2.35665881,220.69,220.48,31.2]
[1758521127486,0.72,220.85,220.4,36.84]
[1758521127688,2.35500157,220.68,220.14,22.90432145]
[1758521128004,2.35500157,220.68,220.05,15.61995196]
[1758521128005,0.72,220.91,220.31,31.2]
[1758521128194,0.72,220.9,220.06,22.7552892]
[1758521128395,2.35625291,220.67,220.06,22.7552892]
[1758521128590,36.84,221.12,220.15,36.16498909]
[1758521128822,4.611,221.01,220.23,13.61]
[1758521128990,4.611,221.01,219.41,13.64411597]
[1758521128991,2.35667414,220.66,220.3,22.20417608]
[1758521129299,0.72,220.78,220.33,13.61]
[1758521129490,0.72,220.78,220.26,31.2]
[1758521129491,2.35598061,220.65,220.35,22.66530282]
[1758521129692,2.35598061,220.65,220.2,22.9275139]
[1758521129900,0.72,220.73,220.29,13.61]
[1758521130104,0.72,220.73,220.17,22.54788871]
[1758521130309,2.35609336,220.64,220.17,22.54788871]
[1758521130509,0.72,220.67,220.16,63.62583349]
[1758521130712,36.82,220.84,220.15,22.35411134]
[1758521130713,0.72,220.66,220.15,22.35411134]
[1758521130912,2.35709299,220.63,219.77,22.50660852]
[1758521131112,7.90997278,220.33,219.77,22.50660852]
[1758521131312,7.90997278,220.33,219.67,36.82]
[1758521131313,0.72,220.32,219.68,40.41645829]
[1758521131695,2.35709299,220.63,219.77,49.81325107]
[1758521131894,2.35709299,220.63,219.91,22.0398287]
[1758521132102,8.62997278,220.62,219.69,36.51460788]
[1758521132315,0.72,220.61,219.69,36.51460788]
[1758521132617,0.72,220.6,219.78,49.68121006]
[1758521132917,0.72,220.6,219.94,94.45975219]
[1758521133225,2.35709299,220.63,220.12,22.64120435]
[1758521133392,2.35709299,220.63,220.16,36.24407898]
[1758521133718,2.35709299,220.63,220.24,22.6503099]
[1758521133919,0.72,220.62,220.02,22.61823986]
[1758521134121,37.54,220.61,219.88,22.56520166]
[1758521134315,0.72,220.6,219.94,22.34975219]
[1758521134513,0.72,220.59,219.88,22.56520166]
[1758521134715,0.72,220.59,220.07,31.2]
[1758521134921,2.35709299,220.63,220.19,31.2]
[1758521135123,2.35709299,220.63,220.13,22.54811004]
[1758521135124,10.26706577,220.63,220.13,22.54811004]
[1758521135323,7.90997278,220.56,220.11,22.92368734]
[1758521135630,7.90997278,220.56,219.62,15.52293299]
[1758521135631,7.90997278,220.53,220.04,22.53328925]
[1758521135834,0.72,220.57,220.0,22.51967745]
[1758521136019,7.90997278,220.51,220.0,22.51967745]
[1758521136220,7.90997278,220.42,220.0,22.51967745]
[1758521136422,0.72,220.41,219.85,22.86387497]
[1758521136737,0.72,220.49,219.88,31.2]
[1758521137025,7.90997278,220.55,219.85,22.86387497]
[1758521137226,7.90997278,220.55,219.84,36.82]
[1758521137227,7.90997278,220.55,220.05,22.08063494]
[1758521137525,0.72,220.54,219.89,22.00089782]
[1758521137724,0.72,220.53,219.87,22.64002294]